[Event "*** Qualifier 2: Titled Tuesday 3|2 Blitz"]
[Site "Chess.com"]
[Date "2017.04.11"]
[Round "1"]
[White "GeorgMeier"]
[Black "eldur16"]
[Result "1-0"]
[WhiteElo "2705"]
[BlackElo "2375"]
[TimeControl "180+2"]
[EndTime "13:07:54 PDT"]
[Termination "GeorgMeier won by resignation"]

1. Nf3 {[%clk 0:03:02]} 1... Nf6 {[%clk 0:03:00.1]} 2. g3 {[%clk 0:03:03.6]}
2... g6 {[%clk 0:03:00.9]} 3. Bg2 {[%clk 0:03:05.3]} 3... Bg7 {[%clk 0:03:01.6]}
4. O-O {[%clk 0:03:07.2]} 4... O-O {[%clk 0:03:02.5]} 5. d4 {[%clk 0:03:09.1]}
5... d6 {[%clk 0:03:03.5]} 6. b3 {[%clk 0:03:10.4]} 6... Nbd7 {[%clk 0:03:03.9]}
7. Bb2 {[%clk 0:03:12]} 7... e5 {[%clk 0:03:04.6]} 8. dxe5 {[%clk 0:03:13]} 8...
Ng4 {[%clk 0:03:05.7]} 9. Qd2 {[%clk 0:03:14.5]} 9... dxe5 {[%clk 0:03:05.7]}
10. e4 {[%clk 0:03:15.1]} 10... Re8 {[%clk 0:03:00.2]} 11. Rd1 {[%clk
0:03:14.1]} 11... c6 {[%clk 0:02:59]} 12. h3 {[%clk 0:03:12]} 12... Nh6 {[%clk
0:02:58.9]} 13. Na3 {[%clk 0:03:13.1]} 13... f6 {[%clk 0:02:56.6]} 14. Nc4
{[%clk 0:03:13.9]} 14... Nf7 {[%clk 0:02:57.4]} 15. a4 {[%clk 0:03:14.5]} 15...
Qc7 {[%clk 0:02:57.4]} 16. a5 {[%clk 0:03:10.8]} 16... Nc5 {[%clk 0:02:57.4]}
17. Qe3 {[%clk 0:03:08.7]} 17... Ne6 {[%clk 0:02:57.1]} 18. h4 {[%clk
0:03:09.5]} 18... Bf8 {[%clk 0:02:52]} 19. Ba3 {[%clk 0:03:06.3]} 19... Bxa3
{[%clk 0:02:50.5]} 20. Rxa3 {[%clk 0:03:07.5]} 20... Rd8 {[%clk 0:02:49.9]} 21.
Raa1 {[%clk 0:03:08.6]} 21... Rxd1+ {[%clk 0:02:44.2]} 22. Rxd1 {[%clk
0:03:09.6]} 22... Bd7 {[%clk 0:02:45.1]} 23. c3 {[%clk 0:02:57.7]} 23... Be8
{[%clk 0:02:43.9]} 24. b4 {[%clk 0:02:56.5]} 24... a6 {[%clk 0:02:37.6]} 25. Bh3
{[%clk 0:02:49.3]} 25... Rd8 {[%clk 0:02:34.3]} 26. Rxd8 {[%clk 0:02:38]} 26...
Nfxd8 {[%clk 0:02:35]} 27. Ne1 {[%clk 0:02:30.6]} 27... Bf7 {[%clk 0:02:33.4]}
28. Nb6 {[%clk 0:01:56.9]} 28... Kg7 {[%clk 0:02:24.8]} 29. Nd3 {[%clk
0:01:58.1]} 29... Qd6 {[%clk 0:02:23]} 30. Na4 {[%clk 0:01:53.7]} 30... Nc7
{[%clk 0:02:19]} 31. Nac5 {[%clk 0:01:50.1]} 31... Nb5 {[%clk 0:02:18.4]} 32.
Nb2 {[%clk 0:01:49.7]} 32... Qe7 {[%clk 0:01:58.4]} 33. Qd2 {[%clk 0:01:43.9]}
33... Ne6 {[%clk 0:01:48.1]} 34. Nba4 {[%clk 0:01:44.7]} 34... Nf8 {[%clk
0:01:34.2]} 35. Bc8 {[%clk 0:01:25.5]} 35... Nd6 {[%clk 0:01:25.7]} 36. Nb6
{[%clk 0:01:26.9]} 36... f5 {[%clk 0:01:20.1]} 37. exf5 {[%clk 0:01:19.5]} 37...
gxf5 {[%clk 0:01:15]} 38. Qg5+ {[%clk 0:01:20.5]} 38... Qxg5 {[%clk 0:01:15.6]}
39. hxg5 {[%clk 0:01:22.4]} 39... Kg6 {[%clk 0:01:03.2]} 40. Bxb7 {[%clk
0:01:18.5]} 40... Nxb7 {[%clk 0:01:02.5]} 41. Nxb7 {[%clk 0:01:20.4]} 41... Kxg5
{[%clk 0:00:59.7]} 42. Nc5 {[%clk 0:01:21.4]} 42... e4 {[%clk 0:00:53.7]} 43.
Nxa6 {[%clk 0:01:22.3]} 43... Ne6 {[%clk 0:00:52.9]} 44. Nc5 {[%clk 0:01:22.9]}
44... Nc7 {[%clk 0:00:53.6]} 45. a6 {[%clk 0:01:23.9]} 45... Nb5 {[%clk
0:00:53.3]} 46. Nc8 {[%clk 0:01:23.6]} 46... Kg4 {[%clk 0:00:50.9]} 47. a7
{[%clk 0:01:24.5]} 47... Nxa7 {[%clk 0:00:51]} 48. Nxa7 {[%clk 0:01:25.7]} 48...
Be8 {[%clk 0:00:48.7]} 49. Ne6 {[%clk 0:01:24.4]} 49... Kf3 {[%clk 0:00:46.5]}
50. Nd4+ {[%clk 0:01:25.3]} 1-0

[Event "*** Qualifier 2: Titled Tuesday 3|2 Blitz"]
[Site "Chess.com"]
[Date "2017.04.11"]
[Round "1"]
[White "penguingm1"]
[Black "nickmatta"]
[Result "1-0"]
[WhiteElo "2595"]
[BlackElo "2308"]
[TimeControl "180+2"]
[EndTime "13:08:09 PDT"]
[Termination "penguingm1 won by checkmate"]

1. d4 {[%clk 0:02:58.9]} 1... Nf6 {[%clk 0:02:58.7]} 2. c4 {[%clk 0:02:59.7]}
2... g6 {[%clk 0:03:00]} 3. f3 {[%clk 0:02:58.8]} 3... d5 {[%clk 0:03:00.4]} 4.
cxd5 {[%clk 0:02:56.5]} 4... Nxd5 {[%clk 0:03:02.3]} 5. e4 {[%clk 0:02:57.7]}
5... Nb6 {[%clk 0:03:03.5]} 6. Nc3 {[%clk 0:02:59.3]} 6... Bg7 {[%clk
0:02:58.1]} 7. Be3 {[%clk 0:02:51.8]} 7... O-O {[%clk 0:02:58]} 8. Qd2 {[%clk
0:02:52.9]} 8... Nc6 {[%clk 0:02:52.9]} 9. O-O-O {[%clk 0:02:53.1]} 9... f5
{[%clk 0:02:46.6]} 10. e5 {[%clk 0:02:53.2]} 10... Nb4 {[%clk 0:02:24]} 11. Nh3
{[%clk 0:02:49.6]} 11... a5 {[%clk 0:02:22.4]} 12. Nf4 {[%clk 0:02:28.6]} 12...
N4d5 {[%clk 0:01:55.4]} 13. h4 {[%clk 0:01:48.7]} 13... Nxf4 {[%clk 0:01:02.5]}
14. Bxf4 {[%clk 0:01:43.4]} 14... Qe8 {[%clk 0:01:01.4]} 15. h5 {[%clk
0:01:29.1]} 15... gxh5 {[%clk 0:01:01.7]} 16. d5 {[%clk 0:01:24.9]} 16... c6
{[%clk 0:00:46.8]} 17. d6 {[%clk 0:01:19.6]} 17... Be6 {[%clk 0:00:43.8]} 18.
Bh6 {[%clk 0:00:56.4]} 18... exd6 {[%clk 0:00:38.3]} 19. Bxg7 {[%clk 0:00:52.3]}
19... Kxg7 {[%clk 0:00:39.6]} 20. exd6 {[%clk 0:00:53.7]} 20... Nd5 {[%clk
0:00:30.2]} 21. Re1 {[%clk 0:00:46.5]} 21... Qg6 {[%clk 0:00:20.4]} 22. Bc4
{[%clk 0:00:44.1]} 22... Bf7 {[%clk 0:00:10.2]} 23. g4 {[%clk 0:00:31.1]} 23...
Qxd6 {[%clk 0:00:04.4]} 24. gxh5 {[%clk 0:00:19.4]} 24... Qf4 {[%clk 0:00:05.5]}
25. h6+ {[%clk 0:00:17.2]} 25... Kh8 {[%clk 0:00:03.7]} 26. Bxd5 {[%clk
0:00:11.7]} 26... Qxd2+ {[%clk 0:00:03.9]} 27. Kxd2 {[%clk 0:00:13.6]} 27...
Rad8 {[%clk 0:00:02.8]} 28. Re7 {[%clk 0:00:14.3]} 28... Bxd5 {[%clk 0:00:04.1]}
29. Nxd5 {[%clk 0:00:15.4]} 29... Rxd5+ {[%clk 0:00:06]} 30. Ke3 {[%clk
0:00:17]} 30... Rb5 {[%clk 0:00:07.5]} 31. b3 {[%clk 0:00:18]} 31... a4 {[%clk
0:00:06.6]} 32. Rg1 {[%clk 0:00:17.9]} 32... axb3 {[%clk 0:00:06.7]} 33. Rgg7
{[%clk 0:00:19.4]} 33... Rd8 {[%clk 0:00:03.9]} 34. Rxh7+ {[%clk 0:00:20.3]}
34... Kg8 {[%clk 0:00:05.5]} 35. Reg7+ {[%clk 0:00:22.2]} 35... Kf8 {[%clk
0:00:07.1]} 36. Rh8# {[%clk 0:00:23.2]} 1-0

[Event "*** Qualifier 2: Titled Tuesday 3|2 Blitz"]
[Site "Chess.com"]
[Date "2017.04.11"]
[Round "1"]
[White "Grebeniuk-S"]
[Black "alturas_pacificas"]
[Result "0-1"]
[WhiteElo "2399"]
[BlackElo "2128"]
[TimeControl "180+2"]
[EndTime "13:08:13 PDT"]
[Termination "alturas_pacificas won by checkmate"]

1. d4 {[%clk 0:03:02]} 1... d5 {[%clk 0:03:00.4]} 2. c4 {[%clk 0:03:02.4]} 2...
c6 {[%clk 0:03:01.2]} 3. cxd5 {[%clk 0:03:03.7]} 3... cxd5 {[%clk 0:03:02.7]} 4.
Bf4 {[%clk 0:03:05.6]} 4... Nc6 {[%clk 0:03:03.9]} 5. e3 {[%clk 0:03:04.8]} 5...
Nf6 {[%clk 0:03:05.3]} 6. Nc3 {[%clk 0:03:05.6]} 6... Bf5 {[%clk 0:03:01.9]} 7.
Qb3 {[%clk 0:02:58.1]} 7... Bc8 {[%clk 0:03:03.3]} 8. Rc1 {[%clk 0:02:58.2]}
8... e6 {[%clk 0:03:03.1]} 9. Bd3 {[%clk 0:02:55]} 9... Bd6 {[%clk 0:03:04.3]}
10. Bg3 {[%clk 0:02:52.2]} 10... Bxg3 {[%clk 0:03:05.2]} 11. hxg3 {[%clk
0:02:54.1]} 11... h6 {[%clk 0:03:07]} 12. Nf3 {[%clk 0:02:55.1]} 12... O-O
{[%clk 0:03:08.4]} 13. O-O {[%clk 0:02:54.2]} 13... a6 {[%clk 0:03:05.3]} 14.
Na4 {[%clk 0:02:52.1]} 14... Na5 {[%clk 0:02:59.3]} 15. Qb6 {[%clk 0:02:50.2]}
15... Bd7 {[%clk 0:02:48.1]} 16. Qxd8 {[%clk 0:02:43.1]} 16... Rfxd8 {[%clk
0:02:49]} 17. Nb6 {[%clk 0:02:39.2]} 17... Rab8 {[%clk 0:02:40.8]} 18. Rc3
{[%clk 0:02:15.3]} 18... Bb5 {[%clk 0:02:35.6]} 19. Rfc1 {[%clk 0:01:51.2]}
19... Bxd3 {[%clk 0:02:33]} 20. Rxd3 {[%clk 0:01:53.1]} 20... Ne4 {[%clk
0:01:58.8]} 21. Ne5 {[%clk 0:01:48.5]} 21... Nc4 {[%clk 0:02:00]} 22. Nexc4
{[%clk 0:01:44.6]} 22... dxc4 {[%clk 0:01:59.7]} 23. Rxc4 {[%clk 0:01:46.5]}
23... Rd6 {[%clk 0:01:57.6]} 24. Rb4 {[%clk 0:01:02.5]} 24... Rc6 {[%clk
0:01:37.7]} 25. f3 {[%clk 0:00:52.9]} 25... Rc1+ {[%clk 0:01:35.6]} 26. Kh2
{[%clk 0:00:51]} 26... Nf2 {[%clk 0:01:36.8]} 27. g4 {[%clk 0:00:37.4]} 27...
Nxd3 {[%clk 0:01:37.6]} 28. Rb3 {[%clk 0:00:39.3]} 28... Ne1 {[%clk 0:01:27.8]}
29. Nd7 {[%clk 0:00:39.6]} 29... Rbc8 {[%clk 0:01:17.2]} 30. Rxb7 {[%clk
0:00:40.7]} 30... R1c7 {[%clk 0:01:17]} 31. Rxc7 {[%clk 0:00:37.3]} 31... Rxc7
{[%clk 0:01:18.2]} 32. Nc5 {[%clk 0:00:39.2]} 32... e5 {[%clk 0:01:14.8]} 33.
Kg3 {[%clk 0:00:35.8]} 33... exd4 {[%clk 0:01:14.7]} 34. exd4 {[%clk 0:00:37.7]}
34... Nc2 {[%clk 0:01:13.7]} 35. Nxa6 {[%clk 0:00:36.3]} 35... Ra7 {[%clk
0:01:07.7]} 36. Nc5 {[%clk 0:00:35.3]} 36... Rxa2 {[%clk 0:01:05.2]} 37. d5
{[%clk 0:00:35.5]} 37... Rxb2 {[%clk 0:01:02.1]} 38. d6 {[%clk 0:00:36.8]} 38...
Nb4 {[%clk 0:00:57.1]} 39. Kf4 {[%clk 0:00:34.5]} 39... Nc6 {[%clk 0:00:57.1]}
40. g5 {[%clk 0:00:33.3]} 40... hxg5+ {[%clk 0:00:56]} 41. Kg4 {[%clk
0:00:34.8]} 41... Rxg2+ {[%clk 0:00:56.2]} 42. Kf5 {[%clk 0:00:35.5]} 42... Rd2
{[%clk 0:00:54.6]} 43. Ne4 {[%clk 0:00:35.6]} 43... Rd5+ {[%clk 0:00:52.6]} 44.
Kg4 {[%clk 0:00:36.8]} 44... f5+ {[%clk 0:00:54]} 45. Kxg5 {[%clk 0:00:36.6]}
45... fxe4+ {[%clk 0:00:55.1]} 46. Kg6 {[%clk 0:00:37.3]} 46... exf3 {[%clk
0:00:50]} 47. d7 {[%clk 0:00:39.2]} 47... Ne7# {[%clk 0:00:46.9]} 0-1

[Event "*** Qualifier 2: Titled Tuesday 3|2 Blitz"]
[Site "Chess.com"]
[Date "2017.04.11"]
[Round "1"]
[White "SmoothAsAHedgehog"]
[Black "MartinMatthiesen"]
[Result "1-0"]
[WhiteElo "2524"]
[BlackElo "2263"]
[TimeControl "180+2"]
[EndTime "13:08:17 PDT"]
[Termination "SmoothAsAHedgehog won by resignation"]

1. Nf3 {[%clk 0:02:59.1]} 1... Nf6 {[%clk 0:02:46.1]} 2. c4 {[%clk 0:02:59.7]}
2... c5 {[%clk 0:02:00.6]} 3. g3 {[%clk 0:02:56.7]} 3... g6 {[%clk 0:01:57.4]}
4. Bg2 {[%clk 0:02:57.4]} 4... Bg7 {[%clk 0:01:58.1]} 5. O-O {[%clk 0:02:59.3]}
5... O-O {[%clk 0:01:58.6]} 6. Nc3 {[%clk 0:03:01]} 6... d5 {[%clk 0:01:57.8]}
7. cxd5 {[%clk 0:03:01.3]} 7... Nxd5 {[%clk 0:01:58.9]} 8. Nxd5 {[%clk 0:03:03]}
8... Qxd5 {[%clk 0:01:59.6]} 9. d3 {[%clk 0:03:04.9]} 9... Qd6 {[%clk
0:01:59.8]} 10. Be3 {[%clk 0:03:04.6]} 10... Nc6 {[%clk 0:02:00.4]} 11. Rc1
{[%clk 0:03:05.5]} 11... Nd4 {[%clk 0:02:00]} 12. Nxd4 {[%clk 0:03:05.2]} 12...
cxd4 {[%clk 0:02:00.2]} 13. Bd2 {[%clk 0:03:05.5]} 13... Be6 {[%clk 0:01:58.3]}
14. Qa4 {[%clk 0:03:04.7]} 14... Qb6 {[%clk 0:01:54.2]} 15. b3 {[%clk
0:02:55.6]} 15... Rac8 {[%clk 0:01:49.1]} 16. Bb4 {[%clk 0:02:47.4]} 16... Bf6
{[%clk 0:01:43.7]} 17. Qa3 {[%clk 0:02:45.4]} 17... Rfe8 {[%clk 0:01:35.4]} 18.
Bc5 {[%clk 0:02:12.7]} 18... Qa6 {[%clk 0:01:20.8]} 19. Qxa6 {[%clk 0:02:11.3]}
19... bxa6 {[%clk 0:01:21.3]} 20. Bxa7 {[%clk 0:02:06.8]} 20... Rc3 {[%clk
0:01:21.3]} 21. Rxc3 {[%clk 0:01:59.7]} 21... dxc3 {[%clk 0:01:21.8]} 22. d4
{[%clk 0:02:01.3]} 22... Rd8 {[%clk 0:01:01.4]} 23. e3 {[%clk 0:02:01.5]} 23...
Bf5 {[%clk 0:00:58.5]} 24. Rc1 {[%clk 0:01:58.3]} 24... e5 {[%clk 0:00:31.6]}
25. Rxc3 {[%clk 0:00:56.7]} 25... exd4 {[%clk 0:00:32.1]} 26. Bxd4 {[%clk
0:00:58.3]} 26... Bxd4 {[%clk 0:00:32.4]} 27. exd4 {[%clk 0:01:00.2]} 27... Rxd4
{[%clk 0:00:32.9]} 28. Bf1 {[%clk 0:00:56.2]} 28... Rd1 {[%clk 0:00:32.3]} 29.
Kg2 {[%clk 0:00:53.3]} 29... Ra1 {[%clk 0:00:31.9]} 30. a4 {[%clk 0:00:48.1]}
30... a5 {[%clk 0:00:25.3]} 31. Bc4 {[%clk 0:00:49.4]} 31... Be4+ {[%clk
0:00:18.6]} 32. f3 {[%clk 0:00:46.9]} 32... Ra2+ {[%clk 0:00:16.3]} 33. Kh3
{[%clk 0:00:47.1]} 33... Bf5+ {[%clk 0:00:17.3]} 34. g4 {[%clk 0:00:48.5]} 34...
Bd7 {[%clk 0:00:17.8]} 35. Kg3 {[%clk 0:00:46.4]} 35... Kg7 {[%clk 0:00:17.7]}
36. Bd5 {[%clk 0:00:34.3]} 36... Ra3 {[%clk 0:00:15.5]} 37. Rc7 {[%clk 0:00:34]}
37... Be8 {[%clk 0:00:16.1]} 38. Rc5 {[%clk 0:00:30.7]} 1-0

[Event "*** Qualifier 2: Titled Tuesday 3|2 Blitz"]
[Site "Chess.com"]
[Date "2017.04.11"]
[Round "1"]
[White "MFBerna"]
[Black "Sven_Tica"]
[Result "1-0"]
[WhiteElo "2120"]
[BlackElo "2400"]
[TimeControl "180+2"]
[EndTime "13:08:18 PDT"]
[Termination "MFBerna won by resignation"]

1. e4 {[%clk 0:03:02]} 1... c6 {[%clk 0:02:59.9]} 2. d4 {[%clk 0:03:02.2]} 2...
d5 {[%clk 0:03:00.7]} 3. Nc3 {[%clk 0:03:02.7]} 3... dxe4 {[%clk 0:03:00.5]} 4.
Nxe4 {[%clk 0:03:04.6]} 4... Nd7 {[%clk 0:03:01.7]} 5. Ng5 {[%clk 0:03:04.1]}
5... g6 {[%clk 0:03:02.9]} 6. Bc4 {[%clk 0:03:03.2]} 6... Nh6 {[%clk 0:02:58.2]}
7. N1f3 {[%clk 0:02:57.5]} 7... Bg7 {[%clk 0:02:58.6]} 8. O-O {[%clk 0:02:34.7]}
8... Nb6 {[%clk 0:02:58.9]} 9. Bb3 {[%clk 0:02:33.1]} 9... a5 {[%clk 0:02:59.7]}
10. a4 {[%clk 0:02:28.8]} 10... O-O {[%clk 0:02:59.5]} 11. Ne5 {[%clk
0:02:24.2]} 11... Nd5 {[%clk 0:02:53.9]} 12. Ngf3 {[%clk 0:02:01.7]} 12... Nf5
{[%clk 0:02:52]} 13. c3 {[%clk 0:02:00.1]} 13... Qc7 {[%clk 0:02:06.7]} 14. Re1
{[%clk 0:01:58.8]} 14... Rd8 {[%clk 0:02:07]} 15. Bd2 {[%clk 0:01:55.6]} 15...
e6 {[%clk 0:02:07.8]} 16. Qe2 {[%clk 0:01:49.1]} 16... b6 {[%clk 0:02:06.5]} 17.
Rad1 {[%clk 0:01:46.2]} 17... Bb7 {[%clk 0:02:04.9]} 18. Bc2 {[%clk 0:01:40.6]}
18... c5 {[%clk 0:02:00.3]} 19. dxc5 {[%clk 0:01:35]} 19... bxc5 {[%clk
0:02:02.2]} 20. h3 {[%clk 0:00:49.3]} 20... Rdc8 {[%clk 0:01:46.5]} 21. Bc1
{[%clk 0:00:36.7]} 21... Ba6 {[%clk 0:01:45.2]} 22. Qe4 {[%clk 0:00:34.7]} 22...
Rab8 {[%clk 0:01:40.7]} 23. h4 {[%clk 0:00:25.9]} 23... Bb7 {[%clk 0:01:19.6]}
24. Qg4 {[%clk 0:00:25.5]} 24... Nf6 {[%clk 0:01:17]} 25. Qh3 {[%clk 0:00:24.5]}
25... Rd8 {[%clk 0:01:15]} 26. Ng5 {[%clk 0:00:24]} 26... Rxd1 {[%clk
0:01:12.3]} 27. Bxd1 {[%clk 0:00:25.9]} 27... Ne4 {[%clk 0:01:10.9]} 28. Nexf7
{[%clk 0:00:21.8]} 28... Nxg5 {[%clk 0:01:09.5]} 29. Nxg5 {[%clk 0:00:21.5]}
29... e5 {[%clk 0:01:10.6]} 30. Bg4 {[%clk 0:00:18.9]} 30... Bc8 {[%clk
0:01:06.7]} 31. h5 {[%clk 0:00:18.7]} 31... h6 {[%clk 0:01:04.7]} 32. hxg6
{[%clk 0:00:17.7]} 32... hxg5 {[%clk 0:00:57.2]} 33. Bxf5 {[%clk 0:00:18.7]}
33... Bxf5 {[%clk 0:00:57]} 34. Qxf5 {[%clk 0:00:20.6]} 34... Rf8 {[%clk
0:00:57.6]} 35. Qe6+ {[%clk 0:00:20]} 35... Kh8 {[%clk 0:00:56.5]} 36. Re3
{[%clk 0:00:21.2]} 36... Bh6 {[%clk 0:00:49.6]} 37. Rh3 {[%clk 0:00:21]} 37...
Kg7 {[%clk 0:00:50.1]} 38. Bxg5 {[%clk 0:00:19.5]} 38... Rh8 {[%clk 0:00:47.6]}
39. Qf6+ {[%clk 0:00:15.6]} 39... Kg8 {[%clk 0:00:48.4]} 40. Qe6+ {[%clk
0:00:15.5]} 1-0

[Event "*** Qualifier 2: Titled Tuesday 3|2 Blitz"]
[Site "Chess.com"]
[Date "2017.04.11"]
[Round "1"]
[White "Kacparov"]
[Black "macko06"]
[Result "1-0"]
[WhiteElo "2588"]
[BlackElo "2326"]
[TimeControl "180+2"]
[EndTime "13:08:24 PDT"]
[Termination "Kacparov won by checkmate"]

1. e4 {[%clk 0:02:53.3]} 1... e6 {[%clk 0:03:01]} 2. d4 {[%clk 0:02:45.9]} 2...
d5 {[%clk 0:03:00.3]} 3. Nd2 {[%clk 0:02:47.2]} 3... c5 {[%clk 0:03:00.9]} 4.
exd5 {[%clk 0:02:46.9]} 4... Qxd5 {[%clk 0:03:02.8]} 5. Ngf3 {[%clk 0:02:48]}
5... cxd4 {[%clk 0:03:04.1]} 6. Bc4 {[%clk 0:02:48.6]} 6... Qd6 {[%clk
0:03:05.6]} 7. O-O {[%clk 0:02:49.6]} 7... Nf6 {[%clk 0:03:07.2]} 8. Nb3 {[%clk
0:02:50.8]} 8... Nc6 {[%clk 0:03:08.8]} 9. Nbxd4 {[%clk 0:02:52.2]} 9... Nxd4
{[%clk 0:03:10.7]} 10. Nxd4 {[%clk 0:02:52.8]} 10... a6 {[%clk 0:03:12.2]} 11.
Bb3 {[%clk 0:02:53.8]} 11... Qc7 {[%clk 0:03:13.6]} 12. Qf3 {[%clk 0:02:53.5]}
12... Bd6 {[%clk 0:03:12.4]} 13. h3 {[%clk 0:02:54.4]} 13... O-O {[%clk
0:03:05.9]} 14. Bg5 {[%clk 0:02:54.4]} 14... Bh2+ {[%clk 0:03:02.3]} 15. Kh1
{[%clk 0:02:52.7]} 15... Be5 {[%clk 0:03:04.2]} 16. Rad1 {[%clk 0:02:51.1]}
16... h6 {[%clk 0:02:53.1]} 17. Bc1 {[%clk 0:02:46.3]} 17... Rd8 {[%clk
0:02:46.2]} 18. c3 {[%clk 0:02:47]} 18... Bxd4 {[%clk 0:02:38.3]} 19. cxd4
{[%clk 0:02:38.1]} 19... Nd5 {[%clk 0:02:35.7]} 20. Qe4 {[%clk 0:02:23.5]} 20...
b6 {[%clk 0:02:13.6]} 21. Qg4 {[%clk 0:02:11.8]} 21... Nf6 {[%clk 0:02:08.4]}
22. Qh4 {[%clk 0:02:12.1]} 22... Qe7 {[%clk 0:01:52.1]} 23. d5 {[%clk
0:01:55.5]} 23... exd5 {[%clk 0:01:44.2]} 24. Be3 {[%clk 0:01:55.3]} 24... b5
{[%clk 0:01:35.5]} 25. Bd4 {[%clk 0:01:55]} 25... Be6 {[%clk 0:01:36.5]} 26. Rd3
{[%clk 0:01:43.9]} 26... Bf5 {[%clk 0:01:23.8]} 27. Re3 {[%clk 0:01:43]} 27...
Qd6 {[%clk 0:01:20.3]} 28. Rg3 {[%clk 0:01:29.1]} 28... Bg6 {[%clk 0:01:16.6]}
29. Rd1 {[%clk 0:01:24.9]} 29... Ne4 {[%clk 0:01:11.3]} 30. Re3 {[%clk
0:01:24.2]} 30... Ng5 {[%clk 0:00:55]} 31. Rf1 {[%clk 0:01:07]} 31... Ne6 {[%clk
0:00:53.7]} 32. Be5 {[%clk 0:01:07.9]} 32... Qc5 {[%clk 0:00:52.1]} 33. Rc3
{[%clk 0:01:08.6]} 33... Qb6 {[%clk 0:00:48.3]} 34. f4 {[%clk 0:01:06]} 34...
Bf5 {[%clk 0:00:47.1]} 35. Qh5 {[%clk 0:00:58.1]} 35... Bg6 {[%clk 0:00:34.6]}
36. Qd1 {[%clk 0:00:55.6]} 36... Bf5 {[%clk 0:00:32.8]} 37. Qh5 {[%clk
0:00:51.7]} 37... Bg6 {[%clk 0:00:33.9]} 38. Qg4 {[%clk 0:00:52.7]} 38... d4
{[%clk 0:00:27.2]} 39. f5 {[%clk 0:00:41.4]} 39... dxc3 {[%clk 0:00:25.8]} 40.
fxg6 {[%clk 0:00:42.4]} 40... Ng5 {[%clk 0:00:20.9]} 41. gxf7+ {[%clk
0:00:41.8]} 41... Kh8 {[%clk 0:00:17.7]} 42. h4 {[%clk 0:00:36.3]} 42... Nxf7
{[%clk 0:00:16.3]} 43. Qxg7# {[%clk 0:00:36.1]} 1-0

[Event "*** Qualifier 2: Titled Tuesday 3|2 Blitz"]
[Site "Chess.com"]
[Date "2017.04.11"]
[Round "1"]
[White "gmcorrales"]
[Black "dhanushbharadwaj"]
[Result "1-0"]
[WhiteElo "2612"]
[BlackElo "2314"]
[TimeControl "180+2"]
[EndTime "13:08:25 PDT"]
[Termination "gmcorrales won by resignation"]

1. e4 {[%clk 0:02:23.1]} 1... c5 {[%clk 0:02:59.2]} 2. Nf3 {[%clk 0:02:24]} 2...
d6 {[%clk 0:03:00.1]} 3. d4 {[%clk 0:02:24.9]} 3... cxd4 {[%clk 0:03:01.7]} 4.
Nxd4 {[%clk 0:02:26.8]} 4... Nf6 {[%clk 0:03:03]} 5. Nc3 {[%clk 0:02:28.1]} 5...
a6 {[%clk 0:03:04.2]} 6. Be3 {[%clk 0:02:24.5]} 6... e5 {[%clk 0:03:04.3]} 7.
Nb3 {[%clk 0:02:25.3]} 7... Be6 {[%clk 0:03:04.6]} 8. Be2 {[%clk 0:02:18.9]}
8... Nbd7 {[%clk 0:03:05.1]} 9. g4 {[%clk 0:02:16.7]} 9... h6 {[%clk 0:03:01]}
10. Rg1 {[%clk 0:02:11.1]} 10... Rc8 {[%clk 0:03:00.2]} 11. Qd2 {[%clk
0:02:01.1]} 11... b5 {[%clk 0:02:58.4]} 12. a3 {[%clk 0:01:45.4]} 12... Qc7
{[%clk 0:02:51.8]} 13. h4 {[%clk 0:01:44.6]} 13... g6 {[%clk 0:02:37.3]} 14. g5
{[%clk 0:01:42.9]} 14... hxg5 {[%clk 0:02:37.3]} 15. hxg5 {[%clk 0:01:44.8]}
15... Nh5 {[%clk 0:02:28.9]} 16. Rh1 {[%clk 0:01:38]} 16... Be7 {[%clk
0:02:15.6]} 17. O-O-O {[%clk 0:01:36.6]} 17... Nb6 {[%clk 0:02:09.3]} 18. Bxb6
{[%clk 0:01:07.7]} 18... Qxb6 {[%clk 0:02:08.8]} 19. Bxh5 {[%clk 0:01:07.7]}
19... gxh5 {[%clk 0:02:10.4]} 20. Kb1 {[%clk 0:01:03.1]} 20... b4 {[%clk
0:02:07.3]} 21. Nd5 {[%clk 0:00:21.9]} 21... Bxd5 {[%clk 0:02:03.2]} 22. Qxd5
{[%clk 0:00:23.8]} 22... bxa3 {[%clk 0:02:04.1]} 23. g6 {[%clk 0:00:25.1]} 23...
Qxf2 {[%clk 0:01:46]} 24. Rd2 {[%clk 0:00:25]} 24... Qf3 {[%clk 0:01:44]} 25.
Rg1 {[%clk 0:00:24.7]} 25... axb2 {[%clk 0:01:20.5]} 26. Kxb2 {[%clk 0:00:23.4]}
26... h4 {[%clk 0:01:14.9]} 27. Rd3 {[%clk 0:00:17.6]} 27... Qf2 {[%clk
0:01:10.6]} 28. gxf7+ {[%clk 0:00:17.7]} 28... Qxf7 {[%clk 0:01:07.4]} 29. Qb7
{[%clk 0:00:18.7]} 29... Rd8 {[%clk 0:01:04]} 30. Qc6+ {[%clk 0:00:19.1]} 30...
Kf8 {[%clk 0:01:04.4]} 31. Rdd1 {[%clk 0:00:20.1]} 31... Rh6 {[%clk 0:00:58.6]}
32. Rg4 {[%clk 0:00:20]} 32... h3 {[%clk 0:00:57.2]} 33. Rh1 {[%clk 0:00:18.4]}
33... h2 {[%clk 0:00:57.6]} 34. Rg2 {[%clk 0:00:19.2]} 34... d5 {[%clk
0:00:24.9]} 35. Qxh6+ {[%clk 0:00:18.5]} 35... Ke8 {[%clk 0:00:18.1]} 36. Qc6+
{[%clk 0:00:19.4]} 36... Kf8 {[%clk 0:00:18.6]} 37. Rhxh2 {[%clk 0:00:20.1]}
37... dxe4 {[%clk 0:00:19.9]} 38. Rh8+ {[%clk 0:00:20.7]} 1-0